{"text_format":"2","workbook":"xlsx","n_sheets":3,"sheets":["Összesítés","Csőszerelés","Földmunka"],"not_rendered":{"charts":0,"images":0,"macros":0,"external_links":1,"defined_names":0,"comments":0,"pivot_tables":0},"unopened":[],"bounds":{"document_bytes":16777216,"sheet_cells":100000,"run_cost":"one","rows_first":2000,"rows_last":500,"rows_between":2000,"halvings":0,"cell_chars":16384,"cell_head_chars":4096},"cells_cut":0,"cells_raw":0,"read":"whole","date_system":"1900"}

{"sheet":"Összesítés","index":0,"n_rows":15,"n_cols":5,"rows_kept":15,"cut":false,"hidden":false,"merged":[[0,0,0,5]]}
["Szeged, SZTE GMF, Hattyas sor 6-8. Kültéri tűzcsap telepítése"]
[]
[null,"No.","Megnevezés","Anyag","Díj"]
[]
[null,1,"Csőszerelés",{"$f":"Csőszerelés!G15","v":0},{"$f":"Csőszerelés!H15","v":0}]
[]
[null,2,"Földmunka",{"$f":"Földmunka!G9","v":0},{"$f":"Földmunka!H9","v":0}]
[]
[null,null,null,{"$f":"SUM(D5:D8)","v":0},{"$f":"SUM(E5:E8)","v":0}]
[]
[null,null,"Összesen Nettó:",null,{"$f":"SUM(D5:E7)","v":0}]
[]
[null,null,"Áfa:",null,{"$f":"E11*0.27","v":0}]
[]
[null,null,"Összesen Bruttó:",null,{"$f":"SUM(E11:E13)","v":0}]

{"sheet":"Csőszerelés","index":1,"n_rows":15,"n_cols":8,"rows_kept":15,"cut":false,"hidden":false,"merged":[[0,2,0,3]]}
["sorsz.","Megnevezés","menny.",null,"Anyag","Díj","Xanyag","Xdíj"]
[1,"Föld feletti tűzcsap DN100 1500mm Hawle",1,"db",0,0,{"$f":"E2*C2","v":0},{"$f":"F2*C2","v":0}]
[2,"Kétoldalon karimás szerelvény elhelyezése ellenkarimákkal,\nDN 100 PN 10 - PN 16, Tolózár DN100 Hawle, beépítése",1,"db",0,0,0,0]
[3,"Kétoldalon karimás szerelvény elhelyezése ellenkarimákkal,\nDN 100 PN 10 - PN 16, FF-idom L=500mm",1,"db",0,0,0,0]
[4,"Kétoldalon karimás szerelvény elhelyezése ellenkarimákkal,\nDN 100 PN 10 - PN 16, FF-idom L=1000mm",1,"db",0,0,{"$f":"E5*C5","v":0},{"$f":"F5*C5","v":0}]
[5,"Beépítési készlet, beépítése",1,"db",0,0,0,0]
[6,"Kétoldalon karimás szerelvény elhelyezése ellenkarimákkal,\nDN 100 PN 10 - PN 16, DN100 QN idom, beépítése",1,"db",0,0,0,0]
[7,"Beton megtámasztás a tűzcsap alá",1,"db",0,0,0,0]
[8,"Multi-Joint beépítése, DN100 tok-karima",2,"db",0,0,0,0]
[9,"Három- vagy négyoldalon karimás szerelvény elhelyezése ellenkarimákkal, DN 100 PN 10 - PN 16, karimás T-idom egál\n",1,"db",0,0,0,0]
[10,"Nyomáspróba elvégzése, vízzel",1,"db",0,0,0,0]
[11,"Víz vezeték fertőtlenítése, vízminta jegyzőkönyvvel",1,"klt",0,0,0,0]
[12,"Térfogatáram mérés (1500l/p; 2,5 bar)",1,"klt",0,0,0,0]
[]
[{"$nulls":6},{"$f":"SUM(G2:G14)","v":0},{"$f":"SUM(H2:H14)","v":0}]

{"sheet":"Földmunka","index":2,"n_rows":9,"n_cols":8,"rows_kept":9,"cut":false,"hidden":false,"merged":[[0,2,0,3]]}
["sorsz.","Megnevezés","menny.",null,"Anyag","Díj","Xanyag","Xdíj"]
[1,"Munkaárok földkiemelése közművesített területen,\nkézi erővel, bármely konzisztenciájú talajban, dúcolás nélkül, 2,0 m˛ szelvényig, III. talajosztály",2,"m3",0,0,{"$f":"E2*C2","v":0},{"$f":"F2*C2","v":0}]
[2,"Földvisszatöltés munkagödörbe vagy munkaárokba,\ntömörítés nélkül, réteges elterítéssel, I-IV. osztályú talajban, kézi erővel, az anyag súlypontja karoláson belül,",2,"m3",0,0,{"$f":"E3*C3","v":0},{"$f":"F3*C3","v":0}]
[3,"Szivárgó paplan készítése kész tükörre, kohókő zúzalékból",1,"m3",0,0,{"$f":"E4*C4","v":0},{"$f":"F4*C4","v":0}]
[4,"Szivárgó paplan készítése kész tükörre, durva homokból",1,"m3",0,0,{"$f":"E5*C5","v":0},{"$f":"F5*C5","v":0}]
[5,"Geodéziai bemérés",{"$f":"[1]Csőszerelés!C2","v":1},"m",0,0,{"$f":"E6*C6","v":0},{"$f":"F6*C6","v":0}]
[]
[]
[{"$nulls":6},{"$f":"SUM(G2:G8)","v":0},{"$f":"SUM(H2:H8)","v":0}]